bitfinex-derivatives/quotes_ETHF0:USTF0_20210406
["timestamp","ask_amount","ask_price","bid_price","bid_amount"]
[1617723204813,2.0,2067.9,2066.9,2.90695]
[1617723205012,2.0,2067.9,2066.9,4.99815]
[1617723206327,12.9399,2068.5,2066.9,4.99815]
[1617723206815,2.0,2069.7,2067.8,2.90695]
[1617723207015,2.0,2069.7,2067.8,2.6096]
[1617723207215,2.0,2069.5,2067.8,2.6096]
[1617723207419,32.0,2069.5,2067.8,2.6096]
[1617723208216,32.0,2069.5,2066.9,2.0912]
[1617723208916,32.0,2069.5,2067.5,2.90695]
[1617723209117,32.0,2069.3,2067.5,5.16725]
[1617723210821,32.0,2069.3,2067.8,2.90695]
[1617723212726,30.0,2069.3,2067.8,2.90695]
[1617723212926,30.0,2069.3,2068.1,2.90695]
[1617723213130,30.0,2069.3,2068.1,5.20945]
[1617723213328,30.0,2069.1,2068.1,5.20945]
[1617723214832,2.90695,2068.2,2068.1,5.20945]
[1617723215636,13.848,2069.4,2068.1,5.20945]
[1617723215835,12.8598,2069.6,2068.1,5.20945]
[1617723216535,42.8598,2069.6,2068.1,5.20945]
[1617723216937,42.8598,2069.6,2068.4,2.90695]
[1617723217139,12.8598,2069.6,2068.4,2.90695]
[1617723217836,2.0,2070.1,2068.4,2.90695]
[1617723218437,30.0,2070.3,2068.4,2.90695]
[1617723218839,30.0,2070.3,2068.8,2.90695]
[1617723219039,30.0,2070.3,2068.8,5.68325]
[1617723219240,2.0,2070.2,2068.8,5.68325]
[1617723219441,30.0,2070.1,2068.8,5.68325]
[1617723219640,2.0,2070.0,2068.8,5.68325]
[1617723219839,30.0,2069.9,2068.8,5.68325]
[1617723220040,2.0,2069.8,2068.8,5.68325]
[1617723220242,2.0,2069.8,2068.8,2.7763]
[1617723220442,30.0,2070.0,2068.8,2.7763]
[1617723220942,2.90695,2068.9,2068.8,5.68325]
[1617723224550,15.8179,2070.7,2068.8,5.68325]
[1617723224951,30.0,2070.6,2069.3,2.90695]
[1617723225151,2.0,2070.5,2069.3,4.81525]
[1617723225352,32.0,2070.5,2069.3,4.81525]
[1617723225552,30.0,2070.5,2069.3,4.81525]
[1617723226453,2.0,2070.4,2069.3,4.81525]
[1617723226652,30.0,2070.5,2069.3,4.81525]
[1617723227057,2.90695,2069.4,2069.3,1.9083]
[1617723227854,2.90695,2069.4,2068.9,2.90695]
[1617723228957,2.0,2070.2,2069.2,2.90695]
[1617723229155,2.0,2070.2,2068.2,0.9535]
[1617723229156,30.0,2070.1,2068.2,0.9535]
[1617723229357,30.0,2070.1,2068.1,2.3025]
[1617723229358,32.0,2070.1,2068.1,2.3025]
[1617723229658,32.0,2070.1,2067.6,30.0]
[1617723229858,32.0,2070.1,2067.7,2.0]
[1617723230057,30.0,2070.1,2067.8,30.0]
[1617723230258,30.0,2070.2,2067.9,2.0]
[1617723230459,2.0,2070.5,2067.9,32.0]
[1617723230962,2.90695,2069.2,2068.9,2.90695]
[1617723231164,2.90695,2069.2,2068.9,5.88465]
[1617723231362,2.90695,2069.2,2068.9,2.9777]
[1617723231966,2.0,2070.3,2068.9,2.9777]
[1617723232373,30.0,2070.2,2068.9,2.9777]
[1617723233072,30.9758,2070.2,2069.0,2.90695]
[1617723233371,30.0,2070.5,2069.0,2.90695]
[1617723233572,13.4493,2070.7,2069.0,2.90695]
[1617723234972,13.4493,2070.7,2069.5,2.90695]
[1617723235170,13.4493,2070.7,2069.5,5.84935]
[1617723236973,2.90695,2069.6,2069.5,5.84935]
[1617723239476,2.90695,2069.6,2069.5,2.90695]
[1617723244583,2.90695,2069.6,2069.5,5.52765]
[1617723244984,2.90695,2069.6,2069.5,2.6207]
[1617723246387,2.90695,2069.6,2069.3,2.90695]
[1617723250092,13.4493,2070.7,2069.3,2.90695]
[1617723250292,13.4493,2070.7,2069.3,5.89215]
[1617723251294,13.4493,2070.7,2070.0,2.90695]
[1617723251496,13.4493,2070.7,2070.0,5.41165]
[1617723252399,43.4493,2070.7,2070.0,2.5047]
[1617723252600,43.4493,2070.7,2068.4,0.966]
[1617723252900,45.4378,2070.7,2068.4,0.966]
[1617723253300,47.4378,2070.7,2069.3,2.90695]
[1617723254604,45.4378,2070.7,2069.3,2.90695]
[1617723255203,2.90695,2069.4,2069.3,2.90695]
[1617723258414,43.4493,2070.7,2069.3,2.90695]
[1617723259214,2.90695,2069.4,2069.3,2.90695]
[1617723260517,13.4493,2070.7,2069.3,4.90695]
[1617723260718,13.4493,2070.7,2069.3,7.18355]
[1617723261317,13.4493,2070.7,2070.0,2.90695]
[1617723263218,2.90695,2070.1,2070.0,2.90695]
[1617723265021,1.24275,2070.1,2070.0,2.90695]
[1617723269028,1.24275,2070.1,2070.0,4.90695]
[1617723270029,1.15695,2070.1,2070.0,4.90695]
[1617723272132,1.15695,2070.1,2070.0,2.90695]
[1617723274633,1.15695,2070.1,2068.8,30.0]
[1617723275032,1.15695,2070.1,2068.9,2.0]
[1617723275233,1.15695,2070.1,2068.2,30.0]
[1617723275435,2.212,2070.4,2069.7,2.90695]
[1617723275633,2.212,2070.4,2068.2,30.0]
[1617723275835,2.212,2070.4,2068.3,2.0]
[1617723276235,32.212,2070.4,2068.3,2.0]
[1617723276636,2.212,2070.4,2068.3,32.0]
[1617723276835,5.95415,2070.9,2068.3,32.0]
[1617723277048,5.95415,2070.9,2068.4,3.3812]
[1617723277339,5.95415,2070.9,2070.8,2.90695]
[1617723277536,4.48795,2070.9,2070.8,5.62995]
[1617723277737,2.0,2072.2,2070.8,5.62995]
[1617723277954,42.589,2072.3,2070.9,2.0]
[1617723279036,12.589,2072.3,2070.9,2.0]
[1617723279340,12.589,2072.3,2071.5,2.90695]
[1617723279540,12.589,2072.3,2071.5,5.59005]
[1617723280043,12.589,2072.3,2071.6,2.0]
[1617723281342,2.90695,2071.7,2071.5,5.59005]
[1617723289354,2.90695,2072.1,2071.6,2.0]
[1617723291457,2.90695,2072.1,2072.0,2.90695]
[1617723291660,2.90695,2072.1,2072.0,7.43525]
[1617723291858,30.0,2073.9,2072.0,7.43525]
[1617723292861,30.0,2073.9,2072.0,8.40265]
[1617723293561,30.0,2073.9,2072.7,2.90695]
[1617723293761,30.0,2073.9,2072.7,5.88715]
[1617723295464,2.90695,2072.8,2072.7,5.88715]
[1617723303172,2.90695,2072.8,2072.7,2.9802]
[1617723303373,2.90695,2072.8,2072.1,2.0]
[1617723303572,2.90695,2072.8,2072.7,2.90695]
[1617723303770,2.90695,2072.8,2072.7,5.43475]
[1617723304070,30.0,2073.9,2072.7,2.5278]
[1617723305371,13.2754,2074.1,2072.7,2.5278]
[1617723305574,2.90695,2072.8,2072.7,5.43475]
[1617723306171,13.2754,2074.1,2072.7,5.43475]
[1617723307576,13.2754,2074.1,2073.1,2.90695]
[1617723307972,30.0,2074.0,2073.1,2.90695]
[1617723308874,13.2754,2074.1,2073.1,2.90695]
[1617723309674,2.90695,2073.2,2073.1,2.90695]
[1617723310676,2.90695,2073.2,2072.2,2.0]
[1617723311575,2.5408,2073.3,2072.8,2.90695]
[1617723312180,30.0,2073.7,2072.8,2.90695]
[1617723313578,2.90695,2072.9,2072.8,2.90695]
[1617723318788,43.2754,2074.1,2072.8,2.90695]
[1617723318988,13.2754,2074.1,2072.8,5.28655]
[1617723319689,13.2754,2074.1,2073.2,2.90695]
[1617723321690,2.90695,2073.3,2073.2,2.90695]
[1617723322789,2.90695,2073.3,2073.2,3.87365]
[1617723323490,2.90695,2073.3,2073.2,2.90695]
[1617723325800,2.90695,2074.2,2074.0,2.90695]
[1617723325996,2.90695,2074.2,2074.0,4.72835]
[1617723334508,2.90695,2074.2,2074.0,34.72835]
[1617723335107,2.0,2075.7,2074.0,34.72835]
[1617723335708,2.0,2075.7,2074.5,2.90695]
[1617723335907,32.0,2075.7,2074.5,2.90695]
[1617723337309,2.0,2075.7,2074.5,2.90695]
[1617723337809,2.90695,2074.6,2074.5,2.90695]
[1617723343715,2.90695,2074.6,2074.5,3.86245]
[1617723344416,2.90695,2074.6,2074.5,2.90695]
[1617723344922,30.0,2076.7,2074.5,32.90695]
[1617723345117,30.0,2076.7,2074.5,35.71385]
[1617723345517,30.0,2076.7,2074.5,36.67725]
[1617723346018,2.0,2076.7,2075.3,2.90695]
[1617723346221,13.2235,2077.3,2075.3,5.20765]
[1617723346428,13.2235,2077.3,2075.3,35.20765]
[1617723347919,30.0,2077.9,2076.5,2.90695]
[1617723348219,2.0,2077.8,2076.5,4.96945]
[1617723350019,2.90695,2076.6,2075.3,34.3007]
[1617723350622,2.90695,2076.6,2075.3,32.3007]
[1617723351421,2.90695,2076.6,2075.3,2.3007]
[1617723351621,2.90695,2076.6,2074.7,30.0]
[1617723351823,32.90695,2076.6,2074.5,0.9634]
[1617723352024,2.0,2076.5,2075.3,2.90695]
[1617723352427,2.0,2076.5,2074.5,0.9634]
[1617723353126,2.0,2076.3,2074.5,0.9634]
[1617723353327,4.5794,2076.3,2074.5,0.9634]
[1617723353526,34.5794,2076.3,2074.5,0.9634]
[1617723354027,34.5794,2076.3,2075.0,2.90695]
[1617723354428,34.5794,2076.3,2073.9,32.0]
[1617723354830,34.5794,2076.3,2073.9,2.0]
[1617723355430,12.7249,2076.2,2073.2,0.9515]
[1617723355632,32.0,2076.1,2073.2,0.9515]
[1617723355931,32.0,2075.9,2073.9,2.90695]
[1617723356131,32.0,2075.9,2071.3,30.0]
[1617723356332,32.0,2075.9,2071.4,30.0]
[1617723356535,32.0,2075.9,2071.6,30.0]
[1617723356934,32.0,2075.9,2071.7,2.0]
[1617723357134,32.0,2075.9,2071.8,30.0]
[1617723357335,32.0,2075.9,2072.0,30.0]
[1617723357535,32.0,2075.9,2072.1,2.0]
[1617723357934,32.0,2075.9,2073.6,2.90695]
[1617723358936,32.0,2075.9,2073.6,4.83405]
[1617723359939,32.0,2075.9,2074.2,2.90695]
[1617723360139,32.0,2075.9,2072.9,34.9342]
[1617723360337,34.7403,2075.9,2072.9,34.9342]
[1617723360539,34.7403,2075.9,2072.9,32.0]
[1617723360740,34.7403,2075.9,2072.9,30.0]
[1617723361541,34.7403,2075.9,2072.1,30.0]
[1617723361943,34.7403,2075.9,2073.0,2.90695]
[1617723364045,2.90695,2073.1,2073.0,2.90695]
[1617723366751,2.90695,2073.1,2072.2,2.0]
[1617723366954,2.90695,2073.1,2070.6,32.0]
[1617723368055,34.2031,2073.5,2070.6,32.0]
[1617723368253,32.0,2073.3,2070.6,32.0]
[1617723370054,32.0,2073.3,2071.9,2.90695]
[1617723371855,32.0,2073.3,2070.7,2.9768]
[1617723372155,32.0,2073.3,2071.2,2.90695]
[1617723374158,2.90695,2071.3,2071.2,2.90695]
[1617723374360,2.2329,2072.4,2071.2,2.90695]
[1617723375560,32.0,2073.3,2071.2,2.90695]
[1617723376161,32.0,2073.3,2071.6,2.90695]
[1617723376361,32.0,2073.3,2071.6,5.10895]
[1617723377361,32.0,2073.3,2071.6,2.202]
[1617723377562,32.0,2073.3,2070.7,2.9768]
[1617723377762,34.6235,2073.3,2070.7,0.9768]
[1617723378165,34.6235,2073.3,2071.2,2.90695]
[1617723379166,37.1945,2073.3,2070.7,0.9666]
[1617723379366,37.1945,2073.3,2069.6,5.07177766]
[1617723379767,35.1945,2073.3,2069.7,32.0]
[1617723379966,35.1945,2073.3,2069.7,34.2991]
[1617723380167,2.90695,2071.5,2071.4,2.90695]
[1617723380466,32.571,2073.3,2071.4,5.35325]
[1617723380668,2.0,2073.2,2071.4,5.35325]
[1617723381068,32.0,2073.2,2071.4,5.35325]
[1617723382171,2.90695,2071.5,2071.4,2.4463]
[1617723382373,2.90695,2071.5,2069.7,37.37089857]
[1617723382672,5.51645,2071.5,2069.7,37.37089857]
[1617723382873,5.51645,2071.5,2069.7,7.37089857]
[1617723383073,5.51645,2071.5,2069.8,2.0]
[1617723384075,2.6095,2071.5,2070.9,2.90695]
[1617723386080,2.90695,2071.0,2070.9,2.90695]
[1617723386482,2.90695,2071.0,2069.7,2.0]
[1617723388081,12.847,2072.2,2069.7,2.0]
[1617723388380,12.847,2072.2,2071.4,2.90695]
[1617723389984,12.847,2072.2,2070.2,2.6879]
[1617723390184,15.1623,2072.2,2070.9,2.90695]
[1617723391387,12.847,2072.2,2070.9,2.90695]
[1617723392286,12.847,2072.2,2071.2,2.90695]
[1617723394187,2.90695,2071.3,2071.2,2.90695]
[1617723397693,12.847,2072.2,2071.2,2.90695]
[1617723397895,13.4469,2073.0,2071.2,4.71935]
[1617723398295,13.4469,2073.0,2071.8,2.90695]
[1617723398594,13.4469,2073.0,2071.8,5.84345]
[1617723399199,32.0,2073.9,2071.8,5.84345]
[1617723399596,13.8612,2073.8,2071.8,5.84345]
[1617723399795,43.8612,2073.8,2071.8,5.84345]
[1617723400096,13.0,2072.1,2071.8,5.84345]
[1617723400296,2.90695,2071.9,2071.8,5.84345]
[1617723402500,2.90695,2071.9,2071.8,2.90695]
[1617723404404,5e-05,2071.9,2071.8,2.90695]
[1617723404904,2.59775,2071.9,2071.8,2.90695]
[1617723405304,2.59775,2071.9,2070.8,0.979]
[1617723406307,2.59775,2071.9,2071.3,2.90695]
[1617723406308,2.5977,2071.9,2071.3,2.90695]
[1617723406510,2.5977,2071.9,2070.8,0.979]
[1617723406911,2.5977,2071.9,2069.5,8.04607877]
[1617723407813,2.5977,2071.9,2069.5,2.974]
[1617723408016,32.5977,2071.9,2069.5,2.974]
[1617723408312,2.0,2071.8,2070.8,2.90695]
[1617723408513,32.0,2071.8,2070.8,2.90695]
[1617723408712,32.0,2071.8,2069.5,2.974]
[1617723409012,32.0,2071.8,2069.2,2.0]
[1617723409414,30.0,2071.6,2069.2,2.0]
[1617723409713,32.0,2071.6,2069.2,2.0]
[1617723410313,32.0,2071.4,2070.1,2.90695]
[1617723411313,34.9588,2071.4,2070.1,2.90695]
[1617723412515,2.90695,2070.2,2070.1,2.90695]
[1617723413716,32.90695,2070.2,2070.1,2.90695]
[1617723414618,32.90695,2070.2,2068.4,3.537]
[1617723414817,32.90695,2070.2,2068.5,2.0]
[1617723416519,30.0,2070.2,2068.5,2.0]
[1617723417720,30.0,2070.2,2067.9,2.0]
[1617723417920,30.0,2070.2,2068.5,4.461]
[1617723418321,30.0,2070.2,2069.7,2.90695]
[1617723418621,30.0,2070.7,2069.7,6.15645]
[1617723418821,30.0,2070.7,2069.7,5.20405]
[1617723420324,30.0,2070.7,2070.2,2.90695]
[1617723420524,30.0,2070.7,2070.2,5.10845]
[1617723420725,32.0,2071.1,2070.2,5.10845]
[1617723421626,2.0,2071.1,2070.2,5.10845]
[1617723421828,30.0,2071.0,2070.2,5.10845]
[1617723422431,2.90695,2070.3,2070.2,2.2015]
[1617723422630,2.90695,2070.3,2069.9,2.90695]
[1617723423233,32.90695,2070.3,2069.9,2.90695]
[1617723423934,34.90695,2070.3,2068.3,0.9808]
[1617723424434,32.0,2070.3,2069.4,2.90695]
[1617723426234,30.0,2070.2,2069.4,2.90695]
[1617723426534,2.90695,2069.5,2069.4,2.90695]
[1617723431342,4.95395,2069.5,2069.4,2.90695]
[1617723434046,13.6726,2070.5,2069.4,2.90695]
[1617723434248,13.6726,2070.5,2069.4,5.19195]
[1617723434647,13.6726,2070.5,2070.0,2.90695]
[1617723434847,30.0,2070.4,2069.4,2.285]
[1617723436347,30.0,2070.4,2068.2,0.9586]
[1617723436547,32.002,2070.4,2069.6,2.90695]
[1617723436748,32.002,2070.4,2068.2,2.0]
[1617723438650,2.0,2070.3,2069.2,2.90695]
[1617723438851,30.0,2070.2,2069.2,2.90695]
[1617723439051,2.0,2070.1,2069.2,2.90695]
[1617723439349,2.002,2070.4,2069.2,2.90695]
[1617723439550,13.6726,2070.5,2069.2,2.90695]
[1617723440651,13.6726,2070.5,2069.8,3.87645]
[1617723440851,13.6726,2070.5,2069.8,6.63545]
[1617723441251,13.6726,2070.5,2069.8,5.66595]
[1617723442551,2.90695,2070.0,2069.8,5.66595]
[1617723443254,2.90695,2070.0,2069.8,2.90695]
[1617723443954,2.90695,2070.0,2069.8,3.86025]
[1617723444154,2.90695,2070.0,2069.8,2.90695]
[1617723446455,13.0273,2071.3,2069.8,2.90695]
[1617723446757,13.0273,2071.3,2070.7,2.90695]
[1617723446956,13.0273,2071.3,2070.7,4.81625]
[1617723448064,2.0,2071.2,2070.7,4.81625]
[1617723448661,30.0,2071.8,2071.1,2.90695]
[1617723448859,2.0,2071.7,2071.1,2.90695]
[1617723450560,2.0,2071.7,2071.4,2.90695]
[1617723450758,30.0,2071.8,2071.4,5.02985]
[1617723450959,2.0,2072.3,2071.4,5.02985]
[1617723451567,13.6821,2073.6,2071.4,5.02985]
[1617723451864,30.0,2072.4,2071.4,5.02985]
[1617723452667,30.0,2072.4,2071.9,2.90695]
[1617723452867,30.0,2072.4,2071.9,4.82365]
[1617723453872,30.0,2072.1,2071.9,4.82365]
[1617723454074,32.0,2072.1,2071.9,4.82365]
[1617723454269,32.0,2072.1,2071.4,2.1229]
[1617723454471,32.0,2072.1,2070.7,1.9093]
[1617723454671,2.90695,2071.4,2071.3,2.90695]
[1617723454969,2.90695,2071.4,2071.3,5.12055]
[1617723457872,30.0,2072.7,2071.3,5.12055]
[1617723458074,2.0,2072.8,2071.3,5.12055]
[1617723458374,13.6821,2073.6,2071.3,5.12055]
[1617723458775,2.0,2073.5,2072.4,2.90695]
[1617723458973,2.0,2073.5,2072.4,5.83965]
[1617723459173,30.0,2073.4,2072.4,5.83965]
[1617723459373,2.0,2073.3,2072.4,5.83965]
[1617723460676,2.90695,2072.5,2072.4,5.83965]
[1617723463380,2.90695,2072.5,2071.3,2.2136]
[1617723463578,5.11285,2072.5,2070.1,32.0]
[1617723463779,35.11285,2072.5,2070.1,32.0]
[1617723464278,2.0,2072.4,2070.1,32.0]
[1617723464678,32.0,2072.4,2071.5,2.90695]
[1617723466781,2.90695,2071.6,2071.5,2.90695]
[1617723469082,32.90695,2071.6,2069.5,0.961]
[1617723469282,30.0,2071.4,2069.5,0.961]
[1617723469685,30.0,2071.4,2069.4,2.0]
[1617723469885,32.0,2071.4,2069.4,2.0]
[1617723470788,32.0,2071.4,2070.4,2.90695]
[1617723471590,32.9637,2071.4,2070.4,2.90695]
[1617723471791,32.0,2071.4,2070.4,2.90695]
[1617723472191,3.008,2071.7,2070.4,2.90695]
[1617723472392,30.0,2072.4,2070.4,2.90695]
[1617723472795,30.0,2072.4,2071.2,2.90695]
[1617723473800,14.8386,2072.9,2071.2,2.90695]
[1617723474102,2.0,2072.7,2071.2,2.90695]
[1617723474298,30.0,2072.6,2071.2,2.90695]
[1617723474497,2.0,2072.5,2071.2,2.90695]
[1617723474799,2.0,2072.5,2071.0,2.2664]
[1617723475297,42.8386,2072.9,2071.0,3.2312]
[1617723476802,44.8386,2072.9,2072.5,2.90695]
[1617723476999,12.8386,2072.9,2072.5,4.73245]
[1617723478902,2.90695,2072.6,2072.5,4.73245]
[1617723482604,12.8386,2072.9,2072.5,4.73245]
[1617723482804,12.8386,2072.9,2072.8,2.90695]
[1617723483109,2.0,2073.2,2072.8,2.90695]
[1617723483904,2.0,2073.6,2072.8,2.90695]
[1617723484206,30.0,2073.5,2072.8,2.90695]
[1617723484404,2.0,2073.4,2072.8,2.90695]
[1617723484807,2.90695,2072.9,2072.8,2.90695]
[1617723488112,2.0,2075.1,2072.8,2.90695]
[1617723489014,2.0,2075.1,2073.9,2.90695]
[1617723489212,2.0,2075.1,2073.9,4.96115]
[1617723490717,12.6588,2075.4,2073.9,4.96115]
[1617723490917,12.6588,2075.4,2074.5,2.90695]
[1617723491121,12.6588,2075.4,2074.5,5.65035]
[1617723492823,2.571,2076.9,2074.5,5.65035]
[1617723493022,2.90695,2075.7,2075.6,2.90695]
[1617723493223,2.90695,2075.7,2075.6,4.94395]
[1617723497825,2.90695,2075.7,2075.6,2.90695]
[1617723498426,2.90695,2075.7,2073.2,0.9706]
[1617723499029,2.90695,2075.4,2075.2,2.90695]
[1617723499228,5.24605,2075.4,2075.2,2.90695]
[1617723499633,5.24605,2075.4,2073.2,0.9706]
[1617723500429,2.90695,2075.4,2073.2,2.9706]
[1617723500729,2.90695,2075.4,2073.3,30.0]
[1617723500929,2.90695,2075.4,2075.2,2.90695]
[1617723502430,2.0,2076.4,2075.2,2.90695]
[1617723503031,2.0,2076.4,2076.0,2.90695]
[1617723503229,2.0,2076.4,2076.0,4.78495]
[1617723504634,2.0,2076.4,2076.0,1.878]
[1617723504836,2.0,2076.4,2074.9,2.9401]
[1617723505036,2.90695,2075.9,2075.7,2.90695]
[1617723508539,2.90695,2075.9,2074.4,0.963]
[1617723508740,2.90695,2075.9,2074.2,2.0]
[1617723508940,2.0488,2076.0,2075.6,2.90695]
[1617723509140,2.0,2076.4,2075.6,2.90695]
[1617723509843,2.0,2076.6,2075.6,2.90695]
[1617723510045,13.0932,2076.7,2075.6,2.90695]
[1617723510447,13.1295,2077.0,2075.6,2.90695]
[1617723510948,13.1295,2077.0,2076.2,2.90695]
[1617723511149,2.0,2077.8,2076.2,4.86235]
[1617723512352,30.0,2077.7,2076.2,4.86235]
[1617723512655,2.0,2077.6,2076.2,4.86235]
[1617723513053,2.90695,2076.3,2076.2,4.86235]
[1617723513454,2.0,2077.6,2076.2,2.90695]
[1617723515056,2.0,2077.6,2076.6,2.90695]
[1617723517059,2.90695,2076.7,2076.6,2.90695]
[1617723520068,1.68165,2076.7,2076.6,2.90695]
[1617723521366,2.0,2077.9,2076.6,2.90695]
[1617723521567,2.0,2077.9,2076.6,5.91635]
[1617723521768,12.9875,2078.4,2076.6,5.91635]
[1617723521967,2.0,2078.3,2076.6,5.91635]
[1617723522168,30.0,2078.2,2076.6,5.91635]
[1617723522570,32.0,2078.2,2076.6,2.90695]
[1617723523082,2.90695,2076.7,2076.6,2.90695]
[1617723523276,5.38625,2076.7,2076.6,2.90695]
[1617723525178,2.90695,2076.7,2076.6,2.90695]
[1617723526279,2.85275,2076.8,2076.6,2.90695]
[1617723526480,2.2437,2077.9,2076.6,2.90695]
[1617723526779,12.9016,2078.3,2076.6,2.90695]
[1617723527279,12.9016,2078.3,2077.8,2.90695]
[1617723527679,12.9016,2078.3,2077.1,2.6105]
[1617723528280,12.9016,2078.3,2077.1,3.5658]
[1617723528781,2.038,2079.0,2077.1,0.9553]
[1617723528981,2.0,2079.0,2077.1,0.9553]
[1617723529180,2.0,2079.0,2077.0,2.597]
[1617723529181,2.0,2079.0,2078.3,2.90695]
[1617723529582,26.4457,2079.2,2078.3,2.90695]
[1617723529983,13.0874,2079.2,2078.3,2.90695]
[1617723530281,15.0874,2079.2,2078.3,2.90695]
[1617723530783,30.0,2079.1,2078.3,2.90695]
[1617723531182,2.90695,2078.4,2078.3,2.90695]
[1617723532384,30.0,2078.9,2078.3,2.90695]
[1617723532884,30.0,2078.9,2078.3,3.87735]
[1617723533085,30.0,2078.9,2078.6,2.90695]
[1617723533886,30.0,2078.9,2077.0,4.597]
[1617723534886,2.0,2079.1,2077.0,4.597]
[1617723535086,2.0,2079.1,2078.5,2.90695]
[1617723535890,32.0,2079.1,2078.5,2.90695]
[1617723537289,2.90695,2078.6,2078.5,2.90695]
[1617723537489,2.90695,2078.6,2078.5,5.64665]
[1617723541195,2.90695,2079.0,2078.5,5.64665]
[1617723543198,2.90695,2079.0,2078.9,2.90695]
[1617723543600,2.90695,2079.0,2078.9,4.90275]
[1617723545804,33.0,2079.6,2078.9,4.90275]
[1617723547108,33.0,2079.6,2079.3,2.90695]
[1617723547506,3.0,2079.6,2079.3,2.90695]
[1617723549309,5.90695,2079.6,2079.3,2.90695]
[1617723550107,3.0,2079.6,2079.3,2.90695]
[1617723553716,33.0,2079.6,2079.3,2.90695]
[1617723553916,33.0,2079.6,2077.8,2.0]
[1617723554215,113.3558,2079.6,2077.1,2.0]
[1617723554417,115.3558,2079.6,2077.1,2.0]
[1617723554616,30.0,2079.4,2077.1,2.0]
[1617723555219,2.90695,2078.7,2078.6,2.90695]
[1617723555418,5.39025,2078.7,2078.6,2.90695]
[1617723555618,35.39025,2078.7,2077.1,2.0]
[1617723556120,37.39025,2078.7,2076.1,2.0]
[1617723556419,37.39025,2078.7,2076.1,32.0]
[1617723556917,42.7177,2078.6,2076.1,32.0]
[1617723557418,44.7177,2078.6,2078.0,2.90695]
[1617723558020,44.7177,2078.6,2076.1,32.0]
[1617723559222,44.7177,2078.6,2077.7,2.90695]
[1617723560723,44.7177,2078.6,2075.6,2.0]
[1617723561226,44.7177,2078.6,2077.7,2.90695]
[1617723561729,44.7177,2078.6,2075.6,2.0]
[1617723562628,32.0,2078.4,2075.6,2.0]
[1617723562828,32.0,2078.4,2075.2,2.0]
[1617723563028,32.0,2078.4,2075.2,32.0]
[1617723563327,32.0,2078.4,2077.4,2.90695]
[1617723563529,32.0,2078.4,2075.2,32.0]
[1617723565229,32.0,2078.4,2077.6,2.90695]
[1617723565528,30.0,2078.4,2077.6,2.90695]
[1617723566230,30.0,2078.4,2075.8,2.0]
[1617723566530,47.9149,2078.4,2075.8,2.0]
[1617723566931,47.9149,2078.4,2075.7,0.9542]
[1617723567329,47.9149,2078.4,2077.4,2.90695]
[1617723568533,47.9149,2078.4,2075.7,0.9542]
[1617723569334,47.9149,2078.4,2077.1,2.90695]
[1617723570542,45.9149,2078.4,2077.1,2.90695]
[1617723570851,45.9149,2078.4,2077.1,5.24945]
[1617723571036,30.0,2078.2,2077.1,5.24945]
[1617723571535,30.0,2078.2,2077.1,2.3425]
[1617723571747,32.5766,2078.2,2076.4,2.5067]
[1617723571946,32.5766,2078.2,2075.7,4.8713]
[1617723572138,32.5766,2078.2,2075.7,2.9542]
[1617723572537,30.0,2078.0,2075.7,2.9542]
[1617723572737,32.0,2078.0,2075.7,0.9542]
[1617723573438,2.90695,2077.3,2077.2,2.90695]
[1617723573638,4.88285,2077.3,2077.2,2.90695]
[1617723574039,4.88285,2077.3,2075.7,0.9542]
[1617723574439,34.88285,2077.3,2075.7,0.9542]
[1617723575341,34.88285,2077.3,2077.2,2.90695]
[1617723576741,4.88285,2077.3,2077.2,2.90695]
[1617723576942,2.90695,2077.3,2077.2,2.90695]
[1617723577642,30.0,2077.8,2077.2,2.90695]
[1617723579344,30.0,2077.8,2077.7,2.90695]
[1617723579746,65.7933,2078.0,2077.7,5.69605]
[1617723583848,95.7933,2078.0,2077.7,5.69605]
[1617723584048,95.7933,2078.0,2077.7,2.90695]
[1617723584249,95.7933,2078.0,2076.0,2.0]
[1617723584449,97.7328,2078.0,2076.0,2.0]
[1617723585351,97.7328,2078.0,2077.9,2.90695]
[1617723585551,97.7328,2078.0,2076.0,2.0]
[1617723586251,97.7328,2078.0,2075.7,0.9542]
[1617723586851,31.9395,2078.0,2075.7,0.9542]
[1617723587457,30.0,2077.8,2077.3,2.90695]
[1617723588758,12.6559,2077.9,2077.3,2.90695]
[1617723588957,30.0,2078.1,2077.3,5.75025]
[1617723589456,2.90695,2078.1,2078.0,2.90695]
[1617723589656,2.90695,2078.1,2078.0,5.52605]
[1617723590058,79.739,2078.4,2078.0,5.52605]
[1617723590764,13.3513,2079.1,2078.0,5.52605]
[1617723591559,13.4864,2079.2,2079.0,2.90695]
[1617723591858,2.90695,2079.4,2079.0,5.48715]